[Event "56th Biel Festival MTO 2023"]
[White "Kocharin,Timur"]
[Black "Matta,Vinay Kumar"]
[Site "Biel"]
[Round "2.41"]
[Annotator "ChessBase"]
[Result "1/2-1/2"]
[Date "2023.07.19"]
[WhiteElo "2225"]
[BlackElo "2111"]
[PlyCount "126"]
[TimeControl "60"]

1. e4 {[%emt 0:0:0]} e5 {[%emt 0:0:0]} 2. Nf3 {[%emt 0:0:0]} Nc6 {[%emt 0:0:0]} 3. Bb5 {[%emt 0:0:0]} a6 {[%emt 0:0:0]} 4. Ba4 {[%emt 0:0:0]} Nf6 {[%emt 0:0:0]} 5. O-O {[%emt 0:0:0]} Be7 {[%emt 0:0:0]} 6. d3 {[%emt 0:0:0]} b5 {[%emt 0:0:0]} 7. Bb3 {[%emt 0:0:0]} d6 {[%emt 0:0:0]} 8. Bd2 {[%emt 0:0:0]} O-O {[%emt 0:0:0]} 9. c3 {[%emt 0:0:0]} Na5 {[%emt 0:0:0]} 10. Bc2 {[%emt 0:0:0]} c5 {[%emt 0:0:0]} 11. Re1 {[%emt 0:0:0]} Qc7 {[%emt 0:0:0]} 12. h3 {[%emt 0:0:16]} Re8 {[%emt 0:1:21]} 13. Bc1 {[%emt 0:7:37]} Bd7 {[%emt 0:3:46]} 14. Nbd2 {[%emt 0:1:9]} Bf8 {[%emt 0:0:38]} 15. Nf1 {[%emt 0:4:47]} g6 {[%emt 0:2:13]} 16. Ng3 {[%emt 0:12:30]} Bg7 {[%emt 0:1:3]} 17. Be3 {[%emt 0:5:58]} d5 {[%emt 0:3:25]} 18. Bg5 {[%emt 0:5:54]} dxe4 {[%emt 0:6:55]} 19. dxe4 {[%emt 0:3:27]} h6 {[%emt 0:1:54]} 20. Bc1 {[%emt 0:6:36]} Rad8 {[%emt 0:8:8]} 21. Qe2 {[%emt 0:0:13]} c4 {[%emt 0:3:48]} 22. Be3 {[%emt 0:6:34]} Nb7 {[%emt 0:1:6]} 23. Red1 {[%emt 0:4:59]} Nc5 {[%emt 0:4:46]} 24. Rd2 {[%emt 0:6:44]} Ne6 {[%emt 0:4:48]} 25. Rad1 {[%emt 0:1:31]} Nf4 {[%emt 0:3:57]} 26. Qf1 {[%emt 0:0:27]} Bf8 {[%emt 0:3:33]} 27. Ne2 {[%emt 0:3:31]} Ne6 {[%emt 0:18:46]} 28. Ng3 {[%emt 0:5:14]} Bc6 {[%emt 0:3:59]} 29. Rxd8 {[%emt 0:7:17]} Rxd8 {[%emt 0:0:57]} 30. Rxd8 {[%emt 0:0:17]} Nxd8 {[%emt 0:0:6]} 31. Qc1 {[%emt 0:0:34]} Kh7 {[%emt 0:0:27]} 32. Qd2 {[%emt 0:7:12]} Ne6 {[%emt 0:1:18]} 33. Nh2 {[%emt 0:3:42]} a5 {[%emt 0:9:14]} 34. Ng4 {[%emt 0:2:45]} Nxg4 {[%emt 0:2:8]} 35. hxg4 {[%emt 0:0:2]} Qd7 {[%emt 0:5:46]} 36. Nf1 {[%emt 0:0:32]} Qb7 {[%emt 0:3:19]} 37. f3 {[%emt 0:1:8]} b4 {[%emt 0:5:17]} 38. Bd1 {[%emt 0:1:8]} b3 {[%emt 0:1:49]} 39. Qc1 {[%emt 0:3:54]} Nc5 {[%emt 0:1:57]} 40. a3 {[%emt 0:1:13]} Nd3 {[%emt 0:0:15]} 41. Qb1 {[%emt 0:30:20]} Bb5 {[%emt 0:0:0]} 42. Be2 {[%emt 0:0:0]} Qc6 {[%emt 0:2:31]} 43. Bxd3 {[%emt 0:0:0]} cxd3 {[%emt 0:0:6]} 44. Nd2 {[%emt 0:0:0]} a4 {[%emt 0:0:59]} 45. Qc1 {[%emt 0:0:0]} Ba6 {[%emt 0:11:31]} 46. Kf2 {[%emt 0:0:0]} Qf6 {[%emt 0:8:49]} 47. Kg3 {[%emt 0:0:0]} Qd8 {[%emt 0:5:30]} 48. Qh1 {[%emt 0:0:0]} f6 {[%emt 0:0:37]} 49. Kf2 {[%emt 0:0:0]} Qc8 {[%emt 0:0:47]} 50. Qc1 {[%emt 0:0:0]} Bc5 {[%emt 0:3:12]} 51. Nf1 {[%emt 0:0:0]} Be7 {[%emt 0:0:14]} 52. Ng3 {[%emt 0:0:0]} Qb7 {[%emt 0:0:41]} 53. Nf1 {[%emt 0:0:0]} Bxa3 {[%emt 0:2:24]} 54. bxa3 {[%emt 0:0:0]} b2 {[%emt 0:0:4]} 55. Qb1 {[%emt 0:0:0]} Qb3 {[%emt 0:0:26]} 56. Bc1 {[%emt 0:0:0]} bxc1=Q {[%emt 0:1:51]} 57. Qxc1 {[%emt 0:0:0]} Qc2+ {[%emt 0:0:32]} 58. Qd2 {[%emt 0:0:0]} Kg7 {[%emt 0:0:26]} 59. Kg3 {[%emt 0:0:0]} Qb1 {[%emt 0:1:13]} 60. Qe3 {[%emt 0:0:0]} Bc4 {[%emt 0:0:41]} 61. Nd2 {[%emt 0:0:0]} Qb5 {[%emt 0:0:50]} 62. Nxc4 {[%emt 0:0:0]} Qxc4 {[%emt 0:0:7]} 63. Qa7+ {[%emt 0:0:0]} Kg8 {[%emt 0:1:16]} 1/2-1/2

[Event "56th Biel Festival MTO 2023"]
[White "Stijve,Niels"]
[Black "Costello,Alexander"]
[Site "Biel"]
[Round "2.42"]
[Annotator "ChessBase"]
[Result "0-1"]
[Date "2023.07.19"]
[WhiteElo "2088"]
[BlackElo "2224"]
[PlyCount "74"]
[TimeControl "60"]

1. e4 {[%emt 0:0:0]} c5 {[%emt 0:0:0]} 2. Nf3 {[%emt 0:0:0]} Nc6 {[%emt 0:0:0]} 3. d4 {[%emt 0:0:0]} cxd4 {[%emt 0:0:0]} 4. Nxd4 {[%emt 0:0:0]} Qb6 {[%emt 0:0:0]} 5. Nb3 {[%emt 0:0:0]} Nf6 {[%emt 0:0:0]} 6. Nc3 {[%emt 0:0:0]} e6 {[%emt 0:0:0]} 7. Be3 {[%emt 0:6:9]} Qc7 {[%emt 0:0:0]} 8. Qd2 {[%emt 0:6:19]} Bb4 {[%emt 0:0:0]} 9. f3 {[%emt 0:5:8]} d5 {[%emt 0:0:0]} 10. a3 {[%emt 0:8:35]} Bxc3 {[%emt 0:0:0]} 11. Qxc3 {[%emt 0:0:6]} e5 {[%emt 0:0:0]} 12. Bg5 {[%emt 0:4:13]} d4 {[%emt 0:11:41]} 13. Qd2 {[%emt 0:4:52]} Nb8 {[%emt 0:3:44]} 14. Rc1 {[%emt 0:11:57]} Be6 {[%emt 0:1:39]} 15. Bd3 {[%emt 0:6:24]} Nbd7 {[%emt 0:39:22]} 16. O-O {[%emt 0:15:38]} O-O {[%emt 0:2:30]} 17. f4 {[%emt 0:6:10]} Qb6 {[%emt 0:14:14]} 18. Na5 {[%emt 0:11:54]} exf4 {[%emt 0:5:0]} 19. Rxf4 {[%emt 0:2:25]} Ng4 {[%emt 0:0:46]} 20. Nc4 {[%emt 0:1:34]} Qc5 {[%emt 0:4:3]} 21. Bh4 {[%emt 0:5:24]} Rac8 {[%emt 0:0:2]} 22. h3 {[%emt 0:2:53]} Bxc4 {[%emt 0:12:18]} 23. hxg4 {[%emt 0:0:27]} Bxd3 {[%emt 0:1:35]} 24. Qxd3 {[%emt 0:0:34]} Ne5 {[%emt 0:0:1]} 25. Qf1 {[%emt 0:1:43]} Ng6 {[%emt 0:0:44]} 26. Rf5 {[%emt 0:0:0]} Qc6 {[%emt 0:0:2]} 27. Bg3 {[%emt 0:1:1]} Qxe4 {[%emt 0:0:2]} 28. c4 {[%emt 0:0:31]} dxc3 {[%emt 0:1:40]} 29. bxc3 {[%emt 0:0:23]} Qxg4 {[%emt 0:0:39]} 30. Bd6 {[%emt 0:0:35]} Rfd8 {[%emt 0:0:34]} 31. Bb4 {[%emt 0:0:29]} f6 {[%emt 0:2:5]} 32. Rf2 {[%emt 0:0:29]} Ne5 {[%emt 0:0:33]} 33. Rf4 {[%emt 0:0:34]} Qg3 {[%emt 0:0:58]} 34. Rc2 {[%emt 0:0:32]} Ng4 {[%emt 0:1:7]} 35. Qf3 {[%emt 0:0:27]} Qh2+ {[%emt 0:0:13]} 36. Kf1 {[%emt 0:0:4]} Qh1+ {[%emt 0:0:3]} 37. Ke2 {[%emt 0:0:2]} Qd1# {[%emt 0:0:9]} 0-1

[Event "56th Biel Festival MTO 2023"]
[White "Kamber,Bruno"]
[Black "Akshit Kumar J"]
[Site "Biel"]
[Round "2.43"]
[Annotator "ChessBase"]
[Result "1-0"]
[Date "2023.07.19"]
[WhiteElo "2214"]
[BlackElo "2105"]
[PlyCount "105"]
[TimeControl "60"]

1. e4 {[%emt 0:0:0]} e5 {[%emt 0:0:0]} 2. Bc4 {[%emt 0:0:0]} Nf6 {[%emt 0:0:0]} 3. d3 {[%emt 0:0:0]} c6 {[%emt 0:0:0]} 4. Nf3 {[%emt 0:0:0]} Be7 {[%emt 0:0:0]} 5. O-O {[%emt 0:0:0]} d6 {[%emt 0:0:0]} 6. a4 {[%emt 0:0:0]} O-O {[%emt 0:0:0]} 7. a5 {[%emt 0:0:0]} Re8 {[%emt 0:0:0]} 8. Bb3 {[%emt 0:1:39]} Bf8 {[%emt 0:2:56]} 9. h3 {[%emt 0:2:55]} g6 {[%emt 0:8:58]} 10. Bg5 {[%emt 0:2:26]} Bg7 {[%emt 0:2:25]} 11. Nc3 {[%emt 0:1:26]} h6 {[%emt 0:4:44]} 12. Bd2 {[%emt 0:0:11]} Nbd7 {[%emt 0:8:39]} 13. Qc1 {[%emt 0:0:11]} g5 {[%emt 0:6:33]} 14. h4 {[%emt 0:0:17]} g4 {[%emt 0:9:38]} 15. Nh2 {[%emt 0:4:6]} h5 {[%emt 0:3:40]} 16. Bg5 {[%emt 0:0:28]} Nc5 {[%emt 0:11:53]} 17. Ba2 {[%emt 0:0:29]} Be6 {[%emt 0:4:30]} 18. Ne2 {[%emt 0:1:41]} Bxa2 {[%emt 0:15:31]} 19. Rxa2 {[%emt 0:0:8]} Ne6 {[%emt 0:0:50]} 20. Ng3 {[%emt 0:0:50]} Nxg5 {[%emt 0:0:27]} 21. Qxg5 {[%emt 0:0:37]} Re6 {[%emt 0:0:42]} 22. Nxh5 {[%emt 0:5:46]} Nxh5 {[%emt 0:0:34]} 23. Qxh5 {[%emt 0:0:7]} Rh6 {[%emt 0:0:54]} 24. Qg5 {[%emt 0:0:23]} Rg6 {[%emt 0:6:4]} 25. Qxd8+ {[%emt 0:17:20]} Rxd8 {[%emt 0:0:34]} 26. g3 {[%emt 0:1:21]} d5 {[%emt 0:0:34]} 27. Ra4 {[%emt 0:0:13]} dxe4 {[%emt 0:0:32]} 28. dxe4 {[%emt 0:0:21]} Bf8 {[%emt 0:1:38]} 29. Rc4 {[%emt 0:2:9]} Rd2 {[%emt 0:0:32]} 30. Re1 {[%emt 0:0:23]} b5 {[%emt 0:1:12]} 31. axb6 {[%emt 0:0:8]} axb6 {[%emt 0:0:2]} 32. Nf1 {[%emt 0:0:28]} Rd7 {[%emt 0:0:15]} 33. Re2 {[%emt 0:0:23]} Rd1 {[%emt 0:0:27]} 34. Kg2 {[%emt 0:0:31]} Bh6 {[%emt 0:4:22]} 35. h5 {[%emt 0:1:9]} Rgd6 {[%emt 0:5:50]} 36. Nh2 {[%emt 0:0:26]} Bc1 {[%emt 0:0:9]} 37. Nxg4 {[%emt 0:1:12]} Bxb2 {[%emt 0:0:16]} 38. c3 {[%emt 0:0:20]} b5 {[%emt 0:2:57]} 39. Rc5 {[%emt 0:0:10]} Ba3 {[%emt 0:0:20]} 40. Rxe5 {[%emt 0:0:12]} Rc1 {[%emt 0:0:41]} 41. Re8+ {[%emt 0:30:47]} Kh7 {[%emt 0:30:31]} 42. e5 {[%emt 0:0:18]} Rdd1 {[%emt 0:0:36]} 43. Nf6+ {[%emt 0:1:37]} Kh6 {[%emt 0:0:6]} 44. Rh8+ {[%emt 0:7:58]} Kg7 {[%emt 0:0:5]} 45. Rh7+ {[%emt 0:2:42]} Kf8 {[%emt 0:0:5]} 46. h6 {[%emt 0:0:18]} Ke7 {[%emt 0:0:37]} 47. Rh8 {[%emt 0:2:5]} Ke6 {[%emt 0:0:9]} 48. Re8+ {[%emt 0:0:32]} Kf5 {[%emt 0:0:5]} 49. h7 {[%emt 0:3:40]} Rg1+ {[%emt 0:1:20]} 50. Kf3 {[%emt 0:0:8]} Rxc3+ {[%emt 0:0:12]} 51. Re3 {[%emt 0:0:6]} Rxe3+ {[%emt 0:0:4]} 52. fxe3 {[%emt 0:0:20]} Rh1 {[%emt 0:0:53]} 53. e4+ {[%emt 0:0:14]} 1-0

[Event "56th Biel Festival MTO 2023"]
[White "Coles,Robin"]
[Black "Ribiere,Damien"]
[Site "Biel"]
[Round "2.44"]
[Annotator "ChessBase"]
[Result "1/2-1/2"]
[Date "2023.07.19"]
[WhiteElo "2070"]
[BlackElo "2213"]
[PlyCount "152"]
[TimeControl "60"]

1. e4 {[%emt 0:0:0]} d6 {[%emt 0:0:0]} 2. d4 {[%emt 0:0:0]} Nf6 {[%emt 0:0:0]} 3. Nc3 {[%emt 0:0:0]} g6 {[%emt 0:0:0]} 4. Be3 {[%emt 0:0:0]} c6 {[%emt 0:0:0]} 5. Qd2 {[%emt 0:0:0]} b5 {[%emt 0:0:0]} 6. Bd3 {[%emt 0:0:0]} Nbd7 {[%emt 0:0:0]} 7. Nf3 {[%emt 0:0:0]} Bg7 {[%emt 0:0:0]} 8. Bh6 {[%emt 0:0:0]} O-O {[%emt 0:0:0]} 9. Bxg7 {[%emt 0:0:0]} Kxg7 {[%emt 0:0:0]} 10. Ne2 {[%emt 0:0:0]} e5 {[%emt 0:0:0]} 11. dxe5 {[%emt 0:1:9]} Nxe5 {[%emt 0:2:11]} 12. Nxe5 {[%emt 0:1:20]} dxe5 {[%emt 0:0:3]} 13. Qc3 {[%emt 0:2:44]} Qd6 {[%emt 0:7:5]} 14. O-O {[%emt 0:10:38]} b4 {[%emt 0:3:18]} 15. Qe1 {[%emt 0:0:49]} c5 {[%emt 0:6:26]} 16. Rd1 {[%emt 0:5:59]} Be6 {[%emt 0:4:7]} 17. b3 {[%emt 0:14:6]} Nh5 {[%emt 0:9:20]} 18. Qd2 {[%emt 0:6:57]} Rad8 {[%emt 0:4:17]} 19. Qe3 {[%emt 0:3:12]} Nf4 {[%emt 0:3:4]} 20. g3 {[%emt 0:7:7]} Nxe2+ {[%emt 0:3:53]} 21. Bxe2 {[%emt 0:0:31]} Qc7 {[%emt 0:2:39]} 22. Bd3 {[%emt 0:9:42]} Rfe8 {[%emt 0:5:21]} 23. Bb5 {[%emt 0:5:3]} Rf8 {[%emt 0:0:5]} 24. Bd3 {[%emt 0:1:7]} a5 {[%emt 0:5:5]} 25. f4 {[%emt 0:5:38]} exf4 {[%emt 0:0:35]} 26. gxf4 {[%emt 0:0:29]} f6 {[%emt 0:1:43]} 27. Rde1 {[%emt 0:7:59]} Rfe8 {[%emt 0:4:12]} 28. Qg3 {[%emt 0:3:18]} c4 {[%emt 0:4:22]} 29. bxc4 {[%emt 0:0:55]} Bxc4 {[%emt 0:0:14]} 30. e5 {[%emt 0:2:25]} Qc5+ {[%emt 0:1:15]} 31. Qe3 {[%emt 0:1:16]} Qxe3+ {[%emt 0:0:44]} 32. Rxe3 {[%emt 0:0:0]} Bxd3 {[%emt 0:1:8]} 33. cxd3 {[%emt 0:0:1]} fxe5 {[%emt 0:2:53]} 34. fxe5 {[%emt 0:1:32]} Rd5 {[%emt 0:2:33]} 35. e6 {[%emt 0:2:32]} Re7 {[%emt 0:1:26]} 36. Rc1 {[%emt 0:1:53]} Kf6 {[%emt 0:0:59]} 37. Rc6 {[%emt 0:1:37]} g5 {[%emt 0:7:46]} 38. Kf2 {[%emt 0:2:56]} h5 {[%emt 0:0:32]} 39. Ke2 {[%emt 0:1:39]} Re5 {[%emt 0:3:24]} 40. Rxe5 {[%emt 0:1:33]} Kxe5 {[%emt 0:0:2]} 41. Rc5+ {[%emt 0:34:18]} Kd4 {[%emt 0:32:26]} 42. Rxg5 {[%emt 0:0:0]} Rxe6+ {[%emt 0:0:0]} 43. Kd2 {[%emt 0:0:0]} Rf6 {[%emt 0:0:0]} 44. Kc2 {[%emt 0:0:0]} a4 {[%emt 0:0:0]} 45. Rxh5 {[%emt 0:0:0]} Rf2+ {[%emt 0:0:0]} 46. Kb1 {[%emt 0:0:0]} Kc3 {[%emt 0:0:0]} 47. Rc5+ {[%emt 0:0:0]} Kxd3 {[%emt 0:0:0]} 48. h4 {[%emt 0:0:0]} Rh2 {[%emt 0:0:0]} 49. h5 {[%emt 0:0:0]} Kd4 {[%emt 0:0:0]} 50. Rc1 {[%emt 0:0:0]} Rxh5 {[%emt 0:0:0]} 51. Rd1+ {[%emt 0:0:0]} Kc4 {[%emt 0:0:0]} 52. Rc1+ {[%emt 0:0:0]} Kb5 {[%emt 0:0:0]} 53. Rg1 {[%emt 0:0:0]} Rh3 {[%emt 0:0:0]} 54. Rg8 {[%emt 0:0:0]} Rh1+ {[%emt 0:0:0]} 55. Kc2 {[%emt 0:0:0]} Rh2+ {[%emt 0:0:0]} 56. Kb1 {[%emt 0:0:0]} Rh4 {[%emt 0:0:0]} 57. Rb8+ {[%emt 0:0:0]} Kc4 {[%emt 0:0:0]} 58. Rc8+ {[%emt 0:0:0]} Kd3 {[%emt 0:0:0]} 59. Rd8+ {[%emt 0:0:0]} Kc3 {[%emt 0:0:0]} 60. Rc8+ {[%emt 0:0:0]} Rc4 {[%emt 0:0:0]} 61. Rxc4+ {[%emt 0:0:0]} Kxc4 {[%emt 0:0:0]} 62. a3 {[%emt 0:0:0]} b3 {[%emt 0:0:0]} 63. Kb2 {[%emt 0:0:0]} Kd3 {[%emt 0:0:0]} 64. Kb1 {[%emt 0:0:0]} Kc3 {[%emt 0:0:0]} 65. Kc1 {[%emt 0:0:0]} Kd3 {[%emt 0:0:0]} 66. Kb1 {[%emt 0:0:0]} Kc4 {[%emt 0:0:0]} 67. Kb2 {[%emt 0:0:0]} Kd4 {[%emt 0:0:0]} 68. Kb1 {[%emt 0:0:0]} Kd3 {[%emt 0:0:0]} 69. Kb2 {[%emt 0:0:0]} Kd2 {[%emt 0:0:0]} 70. Kb1 {[%emt 0:0:0]} Ke3 {[%emt 0:0:0]} 71. Kb2 {[%emt 0:0:0]} Kd4 {[%emt 0:0:0]} 72. Kb1 {[%emt 0:0:0]} Kd3 {[%emt 0:0:0]} 73. Kb2 {[%emt 0:0:0]} Kc4 {[%emt 0:0:0]} 74. Kb1 {[%emt 0:0:0]} Kc3 {[%emt 0:0:0]} 75. Kc1 {[%emt 0:0:0]} b2+ {[%emt 0:0:0]} 76. Kb1 {[%emt 0:0:0]} Kb3 {[%emt 0:0:0]} 1/2-1/2

[Event "56th Biel Festival MTO 2023"]
[White "Ouellet,Maili-Jade"]
[Black "Monteverde,Jonathan"]
[Site "Biel"]
[Round "2.45"]
[Annotator "ChessBase"]
[Result "1/2-1/2"]
[Date "2023.07.19"]
[WhiteElo "2201"]
[BlackElo "2074"]
[PlyCount "54"]
[TimeControl "60"]

1. d4 {[%emt 0:0:0]} Nf6 {[%emt 0:0:0]} 2. c4 {[%emt 0:0:0]} e6 {[%emt 0:0:0]} 3. Nc3 {[%emt 0:0:0]} Bb4 {[%emt 0:0:0]} 4. f3 {[%emt 0:0:0]} c5 {[%emt 0:0:0]} 5. d5 {[%emt 0:0:0]} b5 {[%emt 0:0:0]} 6. e4 {[%emt 0:0:0]} O-O {[%emt 0:0:0]} 7. e5 {[%emt 0:0:0]} Ne8 {[%emt 0:0:0]} 8. f4 {[%emt 0:0:0]} exd5 {[%emt 0:0:0]} 9. cxd5 {[%emt 0:0:0]} d6 {[%emt 0:0:0]} 10. Nf3 {[%emt 0:0:0]} c4 {[%emt 0:0:0]} 11. a4 {[%emt 0:0:0]} Nd7 {[%emt 0:0:0]} 12. axb5 {[%emt 0:0:0]} dxe5 {[%emt 0:0:0]} 13. fxe5 {[%emt 0:4:48]} Nxe5 {[%emt 0:0:0]} 14. Nxe5 {[%emt 0:15:15]} Qh4+ {[%emt 0:0:0]} 15. g3 {[%emt 0:0:13]} Qe4+ {[%emt 0:0:0]} 16. Qe2 {[%emt 0:0:18]} Qxh1 {[%emt 0:0:0]} 17. Bd2 {[%emt 0:3:37]} Nd6 {[%emt 0:29:52]} 18. O-O-O {[%emt 0:1:43]} Re8 {[%emt 0:0:53]} 19. Bh3 {[%emt 0:11:56]} Qxd1+ {[%emt 0:1:45]} 20. Qxd1 {[%emt 0:4:16]} Rxe5 {[%emt 0:31:44]} 21. Bf4 {[%emt 0:3:46]} Re7 {[%emt 0:0:12]} 22. Qa4 {[%emt 0:8:32]} Bc5 {[%emt 0:3:32]} 23. Bxc8 {[%emt 0:0:37]} Rxc8 {[%emt 0:0:14]} 24. Qa6 {[%emt 0:0:48]} Rd8 {[%emt 0:1:47]} 25. Qc6 {[%emt 0:0:53]} Rc8 {[%emt 0:4:59]} 26. Qa6 {[%emt 0:2:33]} Rd8 {[%emt 0:0:16]} 27. Qc6 {[%emt 0:2:18]} Rc8 {[%emt 0:0:40]} 1/2-1/2

[Event "56th Biel Festival MTO 2023"]
[White "Ozcan,Kaan"]
[Black "Prieb,Robert"]
[Site "Biel"]
[Round "2.46"]
[Annotator "ChessBase"]
[Result "0-1"]
[Date "2023.07.19"]
[WhiteElo "2196"]
[BlackElo "2060"]
[PlyCount "122"]
[TimeControl "60"]

1. e4 {[%emt 0:0:0]} e6 {[%emt 0:0:0]} 2. d4 {[%emt 0:0:0]} d5 {[%emt 0:0:0]} 3. exd5 {[%emt 0:0:0]} exd5 {[%emt 0:0:0]} 4. Nf3 {[%emt 0:0:0]} Bd6 {[%emt 0:0:0]} 5. Bd3 {[%emt 0:0:0]} Ne7 {[%emt 0:0:0]} 6. O-O {[%emt 0:0:0]} O-O {[%emt 0:0:0]} 7. Re1 {[%emt 0:0:0]} Bf5 {[%emt 0:0:0]} 8. Nc3 {[%emt 0:1:34]} Bxd3 {[%emt 0:0:0]} 9. Qxd3 {[%emt 0:0:8]} c6 {[%emt 0:2:48]} 10. Ne2 {[%emt 0:6:28]} Qc7 {[%emt 0:13:58]} 11. Ng3 {[%emt 0:3:57]} Nd7 {[%emt 0:3:42]} 12. Bg5 {[%emt 0:5:43]} Rfe8 {[%emt 0:3:20]} 13. Re2 {[%emt 0:7:28]} h6 {[%emt 0:6:51]} 14. Bxe7 {[%emt 0:3:12]} Rxe7 {[%emt 0:1:12]} 15. Rxe7 {[%emt 0:0:33]} Bxe7 {[%emt 0:0:3]} 16. Re1 {[%emt 0:0:32]} Bf8 {[%emt 0:14:57]} 17. c3 {[%emt 0:3:27]} Nf6 {[%emt 0:7:19]} 18. Qf5 {[%emt 0:5:35]} Re8 {[%emt 0:4:2]} 19. Rxe8 {[%emt 0:2:51]} Nxe8 {[%emt 0:0:2]} 20. Ne5 {[%emt 0:2:17]} Nd6 {[%emt 0:2:40]} 21. Qc2 {[%emt 0:1:39]} Qe7 {[%emt 0:6:25]} 22. Kf1 {[%emt 0:3:44]} g6 {[%emt 0:4:41]} 23. Nf3 {[%emt 0:4:17]} Ne4 {[%emt 0:3:26]} 24. Nxe4 {[%emt 0:7:23]} Qxe4 {[%emt 0:0:56]} 25. Qxe4 {[%emt 0:0:59]} dxe4 {[%emt 0:0:3]} 26. Nd2 {[%emt 0:0:14]} f5 {[%emt 0:1:4]} 27. Nc4 {[%emt 0:2:11]} c5 {[%emt 0:3:11]} 28. Ke2 {[%emt 0:3:18]} cxd4 {[%emt 0:3:13]} 29. cxd4 {[%emt 0:0:7]} Kf7 {[%emt 0:2:50]} 30. Ne5+ {[%emt 0:6:37]} Kg7 {[%emt 0:8:54]} 31. f3 {[%emt 0:2:17]} exf3+ {[%emt 0:0:42]} 32. Nxf3 {[%emt 0:0:13]} Kf6 {[%emt 0:0:47]} 33. Kd3 {[%emt 0:1:34]} b5 {[%emt 0:4:16]} 34. h3 {[%emt 0:5:3]} Bd6 {[%emt 0:1:27]} 35. a3 {[%emt 0:1:13]} Ke6 {[%emt 0:1:11]} 36. b4 {[%emt 0:2:10]} Bf4 {[%emt 0:0:54]} 37. Kc3 {[%emt 0:1:10]} g5 {[%emt 0:0:59]} 38. Ne1 {[%emt 0:1:7]} Kd5 {[%emt 0:0:48]} 39. Kd3 {[%emt 0:0:47]} Bc1 {[%emt 0:0:37]} 40. Nc2 {[%emt 0:1:16]} a6 {[%emt 0:1:35]} 41. Kc3 {[%emt 0:43:25]} Ke4 {[%emt 0:0:0]} 42. Na1 {[%emt 0:0:0]} g4 {[%emt 0:0:0]} 43. Nb3 {[%emt 0:0:0]} gxh3 {[%emt 0:0:0]} 44. gxh3 {[%emt 0:0:0]} Bg5 {[%emt 0:0:0]} 45. d5 {[%emt 0:0:0]} f4 {[%emt 0:0:0]} 46. Kd2 {[%emt 0:0:0]} Kf3 {[%emt 0:0:0]} 47. Nd4+ {[%emt 0:0:0]} Kg2 {[%emt 0:0:10]} 48. Ke2 {[%emt 0:0:0]} Bf6 {[%emt 0:3:31]} 49. Nf3 {[%emt 0:0:0]} Kxh3 {[%emt 0:0:43]} 50. d6 {[%emt 0:0:0]} Kg2 {[%emt 0:3:9]} 51. d7 {[%emt 0:0:0]} h5 {[%emt 0:0:31]} 52. Ne1+ {[%emt 0:0:0]} Kg3 {[%emt 0:0:12]} 53. Nd3 {[%emt 0:0:0]} h4 {[%emt 0:1:32]} 54. Ne5 {[%emt 0:4:23]} Kg2 {[%emt 0:2:12]} 55. Nf3 {[%emt 0:1:6]} h3 {[%emt 0:0:38]} 56. Ne1+ {[%emt 0:0:54]} Kg3 {[%emt 0:0:16]} 57. Nf3 {[%emt 0:0:24]} Bd8 {[%emt 0:0:18]} 58. Nd2 {[%emt 0:0:35]} h2 {[%emt 0:1:32]} 59. Nf1+ {[%emt 0:0:5]} Kh3 {[%emt 0:0:7]} 60. Nxh2 {[%emt 0:0:8]} Kxh2 {[%emt 0:0:9]} 61. Kf3 {[%emt 0:0:6]} Bc7 {[%emt 0:0:14]} 0-1

[Event "56th Biel Festival MTO 2023"]
[White "Hornung,Hans"]
[Black "Zhang,Lanlin"]
[Site "Biel"]
[Round "2.47"]
[Annotator "ChessBase"]
[Result "0-1"]
[Date "2023.07.19"]
[WhiteElo "2047"]
[BlackElo "2194"]
[PlyCount "140"]
[TimeControl "60"]

1. Nf3 {[%emt 0:0:0]} d5 {[%emt 0:0:0]} 2. d4 {[%emt 0:0:0]} Nf6 {[%emt 0:0:0]} 3. c4 {[%emt 0:0:0]} e6 {[%emt 0:0:0]} 4. Nc3 {[%emt 0:0:0]} Be7 {[%emt 0:0:0]} 5. Bg5 {[%emt 0:0:0]} c6 {[%emt 0:0:0]} 6. e3 {[%emt 0:0:0]} Nbd7 {[%emt 0:0:0]} 7. Qc2 {[%emt 0:0:0]} h6 {[%emt 0:0:0]} 8. cxd5 {[%emt 0:1:33]} exd5 {[%emt 0:17:36]} 9. Bf4 {[%emt 0:2:16]} O-O {[%emt 0:0:22]} 10. h3 {[%emt 0:3:13]} Re8 {[%emt 0:6:1]} 11. Bd3 {[%emt 0:0:29]} Nf8 {[%emt 0:1:5]} 12. O-O {[%emt 0:4:25]} Ne6 {[%emt 0:11:1]} 13. Bh2 {[%emt 0:0:57]} c5 {[%emt 0:4:1]} 14. Rad1 {[%emt 0:6:46]} cxd4 {[%emt 0:8:5]} 15. exd4 {[%emt 0:0:13]} Bd6 {[%emt 0:0:20]} 16. Be5 {[%emt 0:6:28]} Nc7 {[%emt 0:7:5]} 17. Rfe1 {[%emt 0:16:17]} Be6 {[%emt 0:3:42]} 18. Re3 {[%emt 0:3:55]} Rc8 {[%emt 0:2:49]} 19. Qe2 {[%emt 0:3:54]} Nh5 {[%emt 0:5:6]} 20. Bb1 {[%emt 0:2:10]} Nf4 {[%emt 0:1:55]} 21. Qc2 {[%emt 0:1:44]} Ng6 {[%emt 0:4:34]} 22. Rde1 {[%emt 0:5:38]} Nf8 {[%emt 0:14:45]} 23. Qd2 {[%emt 0:5:11]} b5 {[%emt 0:5:48]} 24. Bxd6 {[%emt 0:5:35]} Qxd6 {[%emt 0:0:3]} 25. Ne5 {[%emt 0:0:49]} b4 {[%emt 0:1:33]} 26. Nd1 {[%emt 0:4:40]} f6 {[%emt 0:2:40]} 27. Nd3 {[%emt 0:6:3]} Bf5 {[%emt 0:0:23]} 28. Bc2 {[%emt 0:1:32]} Bxd3 {[%emt 0:3:13]} 29. Qxd3 {[%emt 0:1:27]} Nce6 {[%emt 0:0:7]} 30. Bb3 {[%emt 0:1:38]} Rcd8 {[%emt 0:0:43]} 31. Qf5 {[%emt 0:2:47]} a5 {[%emt 0:1:49]} 32. Qg4 {[%emt 0:3:38]} Qc6 {[%emt 0:0:18]} 33. R3e2 {[%emt 0:2:8]} a4 {[%emt 0:1:21]} 34. Bc2 {[%emt 0:0:16]} Ng5 {[%emt 0:0:31]} 35. Rxe8 {[%emt 0:2:31]} Rxe8 {[%emt 0:0:3]} 36. Rxe8 {[%emt 0:0:19]} Qxe8 {[%emt 0:0:4]} 37. Ne3 {[%emt 0:0:22]} Nge6 {[%emt 0:1:23]} 38. Nxd5 {[%emt 0:2:53]} Qd8 {[%emt 0:0:24]} 39. Nxb4 {[%emt 0:0:24]} f5 {[%emt 0:0:39]} 40. Bxf5 {[%emt 0:3:34]} Nxd4 {[%emt 0:0:11]} 41. Be4 {[%emt 0:33:58]} Qb6 {[%emt 0:30:46]} 42. a3 {[%emt 0:0:0]} Qc5 {[%emt 0:0:0]} 43. Qd1 {[%emt 0:0:0]} Kh8 {[%emt 0:0:0]} 44. Bc2 {[%emt 0:0:0]} Nfe6 {[%emt 0:0:0]} 45. Qd3 {[%emt 0:0:0]} Kg8 {[%emt 0:0:0]} 46. Qg6 {[%emt 0:0:0]} Ne2+ {[%emt 0:0:0]} 47. Kf1 {[%emt 0:0:0]} N2d4 {[%emt 0:0:0]} 48. g3 {[%emt 0:0:0]} Qc8 {[%emt 0:0:0]} 49. Qh7+ {[%emt 0:0:0]} Kf7 {[%emt 0:0:0]} 50. Qe4 {[%emt 0:0:0]} Qd7 {[%emt 0:0:0]} 51. Bd3 {[%emt 0:0:0]} Qc8 {[%emt 0:0:0]} 52. Kg2 {[%emt 0:0:0]} Ng5 {[%emt 0:0:0]} 53. Qd5+ {[%emt 0:0:0]} Kf8 {[%emt 0:0:0]} 54. g4 {[%emt 0:0:0]} Nge6 {[%emt 0:0:0]} 55. Qd6+ {[%emt 0:0:47]} Kg8 {[%emt 0:0:0]} 56. Nd5 {[%emt 0:0:49]} Qb7 {[%emt 0:0:0]} 57. Be4 {[%emt 0:0:59]} Qxb2 {[%emt 0:0:0]} 58. Ne7+ {[%emt 0:0:53]} Kf7 {[%emt 0:0:0]} 59. Bg6+ {[%emt 0:1:31]} Kf6 {[%emt 0:0:0]} 60. Bf5 {[%emt 0:1:22]} Qb7+ {[%emt 0:0:0]} 61. Nd5+ {[%emt 0:0:7]} Qxd5+ {[%emt 0:0:0]} 62. Qxd5 {[%emt 0:0:23]} Nf4+ {[%emt 0:0:0]} 63. Kg3 {[%emt 0:0:49]} Nxd5 {[%emt 0:0:0]} 64. Bd7 {[%emt 0:0:48]} Nb6 {[%emt 0:0:0]} 65. Be8 {[%emt 0:1:39]} Nc2 {[%emt 0:0:0]} 66. f4 {[%emt 0:0:19]} Nxa3 {[%emt 0:0:0]} 67. h4 {[%emt 0:0:37]} Nb5 {[%emt 0:0:0]} 68. g5+ {[%emt 0:1:24]} Ke7 {[%emt 0:0:0]} 69. Bxb5 {[%emt 0:0:8]} a3 {[%emt 0:0:0]} 70. f5 {[%emt 0:1:22]} a2 {[%emt 0:0:0]} 0-1

[Event "56th Biel Festival MTO 2023"]
[White "Jaivardhan Raj"]
[Black "Adocchio,Giampiero"]
[Site "Biel"]
[Round "2.48"]
[Annotator "TA"]
[Result "1/2-1/2"]
[Date "2023.07.19"]
[WhiteElo "2009"]
[BlackElo "2165"]
[PlyCount "33"]
[TimeControl "60"]

{[%evp 23,33,25,40,12,13,8,8,14,14,0,0,0]} 1. e4 {[%emt 0:0:0]} e6 {[%emt 0:0:0]} 2. d4 {[%emt 0:0:0]} d5 {[%emt 0:0:0]} 3. Nd2 {[%emt 0:0:0]} c5 {[%emt 0:0:0]} 4. exd5 {[%emt 0:0:0]} Qxd5 {[%emt 0:0:0]} 5. Ngf3 {[%emt 0:0:0]} cxd4 {[%emt 0:0:0]} 6. Bc4 {[%emt 0:0:0]} Qd6 {[%emt 0:0:0]} 7. O-O {[%emt 0:0:0]} Nf6 {[%emt 0:0:0]} 8. Nb3 {[%emt 0:1:7]} Nc6 {[%emt 0:0:0]} 9. Nbxd4 {[%emt 0:0:30]} Nxd4 {[%emt 0:0:0]} 10. Nxd4 {[%emt 0:0:30]} Be7 {[%emt 0:0:0]} 11. c3 {[%emt 0:0:30]} O-O {[%emt 0:0:0]} 12. Qf3 {[%emt 0:0:30]} Qc7 {[%emt 0:0:0]} 13. Bd3 {[%emt 0:1:47] C07: French Tarrasch: 3...c5, 4 Ngf3 and 4 exd5 Qxd5.} Bd7 {[%emt 0:0:0] The position is equal.} 14. Bg5 {[%emt 0:0:30][%cal Bc1g5,Bg5h4,Bh4g3,Bg3d6][%mdl 32] [#]} h6 $146 {[%emt 0:0:0]} ({Predecessor:} 14... Nd5 15. Bxe7 Nxe7 16. Rfe1 Rad8 {½-½ Cooper,L (2313)-Lalic,B (2538) Bunratty Masters op 16th 2009 (2)} )15. Bh4 {[%emt 0:0:30]} Rfd8 {[%emt 0:1:26]} 16. Bg3 {[%emt 0:2:32]} Bd6 {[%emt 0:1:44]} 17. Bxd6 {[%emt 0:2:16] A rather calm draw.   Weighted Error Value: White=0.12 (very precise) /Black=0.03 (flawless)} 1/2-1/2